[Event "7th Sharjah Challengers 2024"]
[Site "Sharjah"]
[Date "2024.05.15"]
[Round "2.12"]
[White "Viani Antonio Dcunha"]
[Black "Jaiveer Mahendru"]
[Result "1-0"]
[ECO "C82"]
[WhiteElo "2394"]
[BlackElo "2243"]
[Annotator "TA"]
[PlyCount "89"]
[EventDate "2024.05.13"]
[EventType "swiss"]
[EventCountry "UAE"]
[SourceTitle "playchess.com"]
[Source "ChessBase"]
[SourceQuality "1"]
[TimeControl "5400+30"]

{[%evp 23,89,0,0,0,0,0,0,0,0,-12,-12,-21,-17,-22,-18,-19,-13,-32,0,-175,-150,-164,-144,-143,20,31,64,60,76,56,55,70,58,6,7,0,62,66,239,236,237,226,218,225,263,256,243,166,233,222,230,228,296,275,376,360,403,402,404,397,447,439,528,535,584,581,563,556]} 1. e4 {[%emt 0:00:14]} e5 {[%emt 0:00:04]} 2. Nf3 {[%emt 0:00:09]} Nc6 {[%emt 0:00:02]} 3. Bb5 {[%emt 0:00:09]} a6 {[%emt 0:00:06]} 4. Ba4 {[%emt 0:00:10]} Nf6 {[%emt 0:00:06]} 5. O-O {[%emt 0:00:18]} Nxe4 {[%emt 0:01:33]} 6. d4 {[%emt 0:00:14]} b5 {[%emt 0:00:02]} 7. Bb3 {[%emt 0:00:13]} d5 {[%emt 0:00:03]} 8. dxe5 {[%emt 0:00:21]} Be6 {[%emt 0:00:03]} 9. c3 {[%emt 0:00:47]} Bc5 {[%emt 0:01:42]} 10. Nbd2 {[%emt 0:00:38]} O-O {[%emt 0:00:37]} 11. Bc2 {[%emt 0:00:22]} Nxf2 {[%emt 0:00:17]} 12. Rxf2 {[%emt 0:00:10]} f6 {[%emt 0:00:05]} 13. Nf1 {[%emt 0:02:14] [#] Threatens to win with Be3.} Bxf2+ {[%emt 0:00:05]} 14. Kxf2 {[%emt 0:00:04]} fxe5 {[%emt 0:00:08]} 15. Kg1 {[%emt 0:00:36][%cal Oc2h7] Strongly threatening Bxh7+! The position is equal.} Qd6 {[%emt 0:00:05]} 16. Ng5 {[%emt 0:15:38]} Bf5 {[%emt 0:09:27]} 17. Bxf5 {[%emt 0:11:08]} Rxf5 {[%emt 0:00:06]} 18. Qd3 {[%emt 0:01:26]} e4 {[%emt 0:04:18]} 19. Qh3 {[%emt 0:01:41][%csl LRf5,LRh7] Chess con chili.} Qg6 {[%emt 0:00:13][%cal Oh7h6]} 20. Ng3 $1 {[%emt 0:01:40]} Rf6 {[%emt 0:33:40] ...h6 is the strong threat.} (20... Rxg5 $2 21. Bxg5 Ne5 (21... Qxg5 $2 22. Qe6+ Kh8 23. Qxc6 $18) 22. Be3 $18) 21. Qd7 $2 {[%emt 0:04:27]} (21. Nh5 $11 {and White has nothing to worry.} Rf5 22. Ng3) 21... Rd8 $19 {[%emt 0:12:34]} 22. Qxc7 {[%emt 0:00:25]} h6 {[%emt 0:05:48]} 23. Nh3 {[%emt 0:02:20]} Qf7 $2 {[%emt 0:11:16]} (23... Qe8 $17 {Hoping for ...e3.} 24. Bf4 d4) 24. Qxf7+ $11 {[%emt 0:02:08]} Kxf7 {[%emt 0:00:42]} 25. Nf2 {[%emt 0:10:39]} b4 {[%emt 0:08:35]} 26. Be3 {[%emt 0:01:10]} bxc3 {[%emt 0:00:35]} 27. bxc3 {[%emt 0:00:07]} Rb8 {[%emt 0:00:20]} 28. Nh5 {[%emt 0:06:31]} (28. Rd1 $14) 28... Rf5 {[%emt 0:00:36]} 29. Ng3 {[%emt 0:00:51]} (29. Nf4 $11) 29... Rf6 $14 {[%emt 0:00:04]} 30. Rd1 $36 {[%emt 0:02:00][%mdl 2048] White is pushing.} Rb5 $2 {[%emt 0:02:28] [#]} (30... Rb2 $1 $14) 31. c4 $1 $18 {[%emt 0:01:25][%mdl 512]} dxc4 {[%emt 0:02:06]} 32. Nfxe4 {[%emt 0:01:40]} Re6 {[%emt 0:04:33]} 33. Nd6+ {[%emt 0:00:22] Excellent horsemanship.} Kg8 {[%emt 0:00:18]} 34. Nxb5 {[%emt 0:00:28]} ({Stronger than} 34. Nxc4 Na5 35. Nxa5 Rxa5 36. Rd8+ Kh7 $11) 34... axb5 {[%emt 0:02:03]} 35. Nf1 {[%emt 0:05:01]} Nb4 {[%emt 0:01:58]} (35... b4 $142 36. Rd5 c3) 36. Rd8+ {[%emt 0:03:12]} Kh7 {[%emt 0:00:44]} 37. Rb8 {[%emt 0:11:08]} Nc2 {[%emt 0:00:04]} 38. Bd2 {[%emt 0:02:01]} Nd4 {[%emt 0:00:01]} 39. Ng3 {[%emt 0:01:20]} Ne2+ {[%emt 0:01:54]} 40. Nxe2 {[%emt 0:00:11]} Rxe2 {[%emt 0:00:02]} 41. Rd8 {[%emt 0:00:35]} g5 {[%emt 0:00:55][%cal Bg7g5,Bg5g4][%mdl 32]} 42. a3 {[%emt 0:01:27] White is clearly winning.} Kg6 {[%emt 0:00:35]} 43. Rd5 {[%emt 0:00:32]} g4 {[%emt 0:00:27]} 44. Kf1 {[%emt 0:00:27]} Re6 {[%emt 0:00:18]} 45. Rxb5 {[%emt 0:00:16] Never resign too early!   Weighted Error Value: White=0.16 (very precise) /Black=0.32.  Loses game:     	White=1     	Black=1      Mistake:       	White=2     	Black=2      Inaccurate:     	White=1     	Black=3      OK:         	White=14    	Black=10     Best:        	White=6     	Black=4      Strong:       	White=1     	---        Brilliant:      	White=1     	---} 1-0